[Event "Titled Tuesday Blitz March 21 Early 2023"]
[White "Cherniaiev, Tykhon"]
[Black "Sanchez Alvares, Kelvin Antonio"]
[WhiteFideId "14182360"]
[BlackFideId "3906680"]
[WhiteElo "2450"]
[BlackElo "2217"]
[Result "0-1"]
[Round "10"]
[TimeControl "180+2"]
[Date "2023.03.21"]
[WhiteClock "0:00:11"]
[BlackClock "0:00:49"]

1. Nf3 {[%clk 0:02:56]}  d5 {[%clk 0:02:56]} 2. d4 {[%clk 0:02:55]}  Nf6 {[%clk 0:02:55]} 3. c4 {[%clk 0:02:56]}  c6 {[%clk 0:02:55]} 4. Nc3 {[%clk 0:02:56]}  e6 {[%clk 0:02:48]} 5. e3 {[%clk 0:02:56]}  Nbd7 {[%clk 0:02:47]} 6. b3 {[%clk 0:02:53]}  Bb4 {[%clk 0:02:47]} 7. Bd2 {[%clk 0:02:53]}  Qe7 {[%clk 0:02:47]} 8. Bd3 {[%clk 0:02:52]}  dxc4 {[%clk 0:02:46]} 9. bxc4 {[%clk 0:02:52]}  e5 {[%clk 0:02:46]} 10. dxe5 {[%clk 0:02:27]}  Nxe5 {[%clk 0:02:38]} 11. Nxe5 {[%clk 0:02:27]}  Qxe5 {[%clk 0:02:28]} 12. Qb3 {[%clk 0:02:27]}  a5 {[%clk 0:02:26]} 13. a3 {[%clk 0:02:26]}  Bd6 {[%clk 0:02:24]} 14. f4 {[%clk 0:02:18]}  Qe7 {[%clk 0:02:22]} 15. O-O {[%clk 0:02:11]}  O-O {[%clk 0:02:20]} 16. Rae1 {[%clk 0:02:08]}  Bc5 {[%clk 0:02:20]} 17. Kh1 {[%clk 0:02:07]}  Rd8 {[%clk 0:02:20]} 18. Na4 {[%clk 0:02:03]}  Bxa3 {[%clk 0:02:08]} 19. e4 {[%clk 0:01:28]}  Bb4 {[%clk 0:02:00]} 20. Bxb4 {[%clk 0:01:18]}  Qxb4 {[%clk 0:01:59]} 21. Qc2 {[%clk 0:01:19]}  Be6 {[%clk 0:01:38]} 22. Rb1 {[%clk 0:01:15]}  Qa3 {[%clk 0:01:33]} 23. Rf3 {[%clk 0:01:09]}  Ng4 {[%clk 0:01:26]} 24. h3 {[%clk 0:00:57]}  Rxd3 {[%clk 0:01:23]} 25. hxg4 {[%clk 0:00:46]}  Rxf3 {[%clk 0:01:22]} 26. gxf3 {[%clk 0:00:46]}  Qxf3+ {[%clk 0:01:22]} 27. Qg2 {[%clk 0:00:47]}  Qxf4 {[%clk 0:01:19]} 28. Nc5 {[%clk 0:00:42]}  Bxg4 {[%clk 0:01:17]} 29. Nd3 {[%clk 0:00:22]}  Qf3 {[%clk 0:01:13]} 30. Rxb7 {[%clk 0:00:19]}  Rd8 {[%clk 0:01:08]} 31. Ne5 {[%clk 0:00:10]}  Rd1+ {[%clk 0:00:56]} 32. Kh2 {[%clk 0:00:10]}  Qf4+ {[%clk 0:00:56]} 33. Qg3 {[%clk 0:00:10]}  Rd2+ {[%clk 0:00:50]} 34. Kh1 {[%clk 0:00:10]}  Qf1+ {[%clk 0:00:49]} 35. Qg1 {[%clk 0:00:11]}  Qh3+ {[%clk 0:00:49]} 36. Qh2 {[%clk 0:00:11]}  Qxh2# {[%clk 0:00:49]} 0-1


[Site "https://www.chess.com"]

[Event "Titled Tuesday Blitz March 21 Early 2023"]
[White "Orlov, Georgi"]
[Black "Van Osch, Mees"]
[WhiteFideId "2011271"]
[BlackFideId "1035967"]
[WhiteElo "2620"]
[BlackElo "2324"]
[Result "1-0"]
[Round "10"]
[TimeControl "180+2"]
[Date "2023.03.21"]
[WhiteClock "0:00:09"]
[BlackClock "0:00:06"]

1. e4 {[%clk 0:03:00]}  e6 {[%clk 0:02:37]} 2. d4 {[%clk 0:02:57]}  c5 {[%clk 0:02:37]} 3. Nf3 {[%clk 0:02:52]}  cxd4 {[%clk 0:02:28]} 4. Nxd4 {[%clk 0:02:52]}  Nf6 {[%clk 0:02:28]} 5. Nc3 {[%clk 0:02:51]}  Bb4 {[%clk 0:02:22]} 6. e5 {[%clk 0:02:50]}  Nd5 {[%clk 0:02:22]} 7. Bd2 {[%clk 0:02:50]}  Nxc3 {[%clk 0:02:21]} 8. bxc3 {[%clk 0:02:50]}  Be7 {[%clk 0:02:21]} 9. Qg4 {[%clk 0:02:50]}  O-O {[%clk 0:02:20]} 10. Bd3 {[%clk 0:02:43]}  Nc6 {[%clk 0:02:19]} 11. Bh6 {[%clk 0:02:41]}  g6 {[%clk 0:02:19]} 12. Bxf8 {[%clk 0:02:41]}  Bxf8 {[%clk 0:02:20]} 13. Nxc6 {[%clk 0:02:40]}  bxc6 {[%clk 0:02:20]} 14. O-O {[%clk 0:02:39]}  Qa5 {[%clk 0:02:18]} 15. Qd4 {[%clk 0:02:35]}  c5 {[%clk 0:02:03]} 16. Qc4 {[%clk 0:02:32]}  Bb7 {[%clk 0:02:03]} 17. Qb5 {[%clk 0:02:17]}  Qc7 {[%clk 0:01:58]} 18. Rfe1 {[%clk 0:02:16]}  Bd5 {[%clk 0:01:42]} 19. Rab1 {[%clk 0:01:55]}  Bxa2 {[%clk 0:01:15]} 20. Qb7 {[%clk 0:01:24]}  Qd8 {[%clk 0:01:14]} 21. Be4 {[%clk 0:01:04]}  Bxb1 {[%clk 0:01:06]} 22. Qxa8 {[%clk 0:01:04]}  Qxa8 {[%clk 0:01:06]} 23. Bxa8 {[%clk 0:01:03]}  Bxc2 {[%clk 0:01:03]} 24. Ra1 {[%clk 0:01:02]}  d6 {[%clk 0:00:50]} 25. exd6 {[%clk 0:00:58]}  Bxd6 {[%clk 0:00:51]} 26. Rxa7 {[%clk 0:00:58]}  c4 {[%clk 0:00:46]} 27. Bc6 {[%clk 0:00:36]}  Be5 {[%clk 0:00:39]} 28. Be8 {[%clk 0:00:32]}  Bf5 {[%clk 0:00:31]} 29. Rxf7 {[%clk 0:00:20]}  Bxc3 {[%clk 0:00:30]} 30. Rc7 {[%clk 0:00:20]}  Be5 {[%clk 0:00:19]} 31. Rxc4 {[%clk 0:00:19]}  Kf8 {[%clk 0:00:19]} 32. Bd7 {[%clk 0:00:18]}  Ke7 {[%clk 0:00:19]} 33. Bc8 {[%clk 0:00:18]}  Kd6 {[%clk 0:00:20]} 34. Ra4 {[%clk 0:00:18]}  h5 {[%clk 0:00:19]} 35. h3 {[%clk 0:00:17]}  h4 {[%clk 0:00:19]} 36. f4 {[%clk 0:00:15]}  Bc3 {[%clk 0:00:18]} 37. Kf2 {[%clk 0:00:16]}  Kc7 {[%clk 0:00:17]} 38. Ba6 {[%clk 0:00:15]}  Kb6 {[%clk 0:00:18]} 39. Bc4 {[%clk 0:00:14]}  Kc5 {[%clk 0:00:17]} 40. Bb3 {[%clk 0:00:11]}  Bd4+ {[%clk 0:00:14]} 41. Kf3 {[%clk 0:00:12]}  Bg1 {[%clk 0:00:13]} 42. Rc4+ {[%clk 0:00:11]}  Kd6 {[%clk 0:00:13]} 43. Rc1 {[%clk 0:00:10]}  Bc5 {[%clk 0:00:12]} 44. Bc2 {[%clk 0:00:10]}  Ba3 {[%clk 0:00:06]} 45. Rd1+ {[%clk 0:00:10]}  Kc5 {[%clk 0:00:07]} 46. Bxf5 {[%clk 0:00:10]}  exf5 {[%clk 0:00:08]} 47. Rd7 {[%clk 0:00:09]}  Bb2 {[%clk 0:00:07]} 48. Rd8 {[%clk 0:00:09]}  Kc6 {[%clk 0:00:06]} 49. Rg8 {[%clk 0:00:09]} 1-0


[Site "https://www.chess.com"]

[Event "Titled Tuesday Blitz March 21 Early 2023"]
[White "Do Nascimento,Christian Almeida"]
[Black "Guzman Moneo, Alberto"]
[WhiteFideId "2143801"]
[BlackFideId "2209616"]
[WhiteElo "2125"]
[BlackElo "2157"]
[Result "1-0"]
[Round "10"]
[TimeControl "180+2"]
[Date "2023.03.21"]
[WhiteClock "0:00:05"]
[BlackClock "0:00:21"]

1. e4 {[%clk 0:02:56]}  c5 {[%clk 0:02:59]} 2. Nc3 {[%clk 0:02:56]}  g6 {[%clk 0:02:58]} 3. g3 {[%clk 0:02:56]}  Nc6 {[%clk 0:02:57]} 4. Bg2 {[%clk 0:02:56]}  Rb8 {[%clk 0:02:58]} 5. a4 {[%clk 0:02:53]}  a6 {[%clk 0:02:57]} 6. Nge2 {[%clk 0:02:53]}  b5 {[%clk 0:02:57]} 7. axb5 {[%clk 0:02:52]}  axb5 {[%clk 0:02:57]} 8. d3 {[%clk 0:02:52]}  b4 {[%clk 0:02:57]} 9. Nb1 {[%clk 0:02:38]}  Bg7 {[%clk 0:02:56]} 10. O-O {[%clk 0:02:38]}  Nf6 {[%clk 0:02:51]} 11. Bf4 {[%clk 0:02:35]}  d6 {[%clk 0:02:42]} 12. Qc1 {[%clk 0:02:26]}  O-O {[%clk 0:02:33]} 13. Bh6 {[%clk 0:02:23]}  Nd4 {[%clk 0:02:33]} 14. Nxd4 {[%clk 0:02:21]}  cxd4 {[%clk 0:02:34]} 15. Bxg7 {[%clk 0:02:21]}  Kxg7 {[%clk 0:02:34]} 16. Nd2 {[%clk 0:02:18]}  e5 {[%clk 0:02:31]} 17. Nc4 {[%clk 0:02:14]}  Be6 {[%clk 0:02:29]} 18. b3 {[%clk 0:02:13]}  Qc7 {[%clk 0:02:22]} 19. f4 {[%clk 0:02:11]}  Bxc4 {[%clk 0:02:19]} 20. bxc4 {[%clk 0:02:10]}  Ng4 {[%clk 0:02:19]} 21. f5 {[%clk 0:01:34]}  f6 {[%clk 0:02:10]} 22. Qb2 {[%clk 0:01:09]}  Ne3 {[%clk 0:02:05]} 23. Rfb1 {[%clk 0:01:07]}  Rb7 {[%clk 0:01:46]} 24. Ra6 {[%clk 0:01:03]}  Rfb8 {[%clk 0:01:42]} 25. fxg6 {[%clk 0:01:00]}  hxg6 {[%clk 0:01:41]} 26. Qb3 {[%clk 0:00:56]}  Rb6 {[%clk 0:01:35]} 27. Ra4 {[%clk 0:00:54]}  R8b7 {[%clk 0:01:33]} 28. Bh3 {[%clk 0:00:49]}  Ra7 {[%clk 0:01:28]} 29. Rba1 {[%clk 0:00:33]}  Rxa4 {[%clk 0:01:25]} 30. Rxa4 {[%clk 0:00:33]}  Qc5 {[%clk 0:01:11]} 31. Be6 {[%clk 0:00:28]}  Kh6 {[%clk 0:01:08]} 32. h4 {[%clk 0:00:26]}  Qc7 {[%clk 0:01:03]} 33. Ra8 {[%clk 0:00:15]}  Rb8 {[%clk 0:00:56]} 34. Ra4 {[%clk 0:00:11]}  Qe7 {[%clk 0:00:55]} 35. Bd5 {[%clk 0:00:11]}  f5 {[%clk 0:00:48]} 36. Rxb4 {[%clk 0:00:07]}  Rxb4 {[%clk 0:00:49]} 37. Qxb4 {[%clk 0:00:08]}  f4 {[%clk 0:00:47]} 38. Qb8 {[%clk 0:00:06]}  fxg3 {[%clk 0:00:37]} 39. Qh8+ {[%clk 0:00:05]}  Qh7 {[%clk 0:00:37]} 40. Qf8+ {[%clk 0:00:02]}  Qg7 {[%clk 0:00:37]} 41. Qxd6 {[%clk 0:00:03]}  Kh5 {[%clk 0:00:28]} 42. Qd8 {[%clk 0:00:03]}  Kg4 {[%clk 0:00:24]} 43. Qg5+ {[%clk 0:00:03]}  Kf3 {[%clk 0:00:24]} 44. h5 {[%clk 0:00:02]}  Ng4 {[%clk 0:00:19]} 45. Qxg6 {[%clk 0:00:02]}  Qxg6 {[%clk 0:00:19]} 46. hxg6 {[%clk 0:00:02]}  Ke3 {[%clk 0:00:17]} 47. g7 {[%clk 0:00:03]}  Nf6 {[%clk 0:00:17]} 48. g8=Q {[%clk 0:00:03]}  Nxg8 {[%clk 0:00:18]} 49. Bxg8 {[%clk 0:00:04]}  Kd2 {[%clk 0:00:18]} 50. c5 {[%clk 0:00:04]}  Kxc2 {[%clk 0:00:18]} 51. c6 {[%clk 0:00:04]}  Kxd3 {[%clk 0:00:18]} 52. c7 {[%clk 0:00:05]}  Ke2 {[%clk 0:00:17]} 53. c8=Q {[%clk 0:00:05]}  d3 {[%clk 0:00:18]} 54. Bc4 {[%clk 0:00:05]}  Ke3 {[%clk 0:00:18]} 55. Bxd3 {[%clk 0:00:05]}  Kxd3 {[%clk 0:00:19]} 56. Qc6 {[%clk 0:00:05]}  Ke3 {[%clk 0:00:19]} 57. Kg2 {[%clk 0:00:06]}  Kf4 {[%clk 0:00:20]} 58. Qc3 {[%clk 0:00:05]}  Kxe4 {[%clk 0:00:20]} 59. Kxg3 {[%clk 0:00:05]}  Kf5 {[%clk 0:00:20]} 60. Qc5 {[%clk 0:00:05]}  Ke4 {[%clk 0:00:20]} 61. Qc4+ {[%clk 0:00:06]}  Ke3 {[%clk 0:00:20]} 62. Qd5 {[%clk 0:00:05]}  e4 {[%clk 0:00:20]} 63. Qe5 {[%clk 0:00:05]}  Kd3 {[%clk 0:00:20]} 64. Kf4 {[%clk 0:00:05]}  Kd2 {[%clk 0:00:20]} 65. Qxe4 {[%clk 0:00:06]}  Kd1 {[%clk 0:00:20]} 66. Qg2 {[%clk 0:00:06]}  Kc1 {[%clk 0:00:20]} 67. Ke3 {[%clk 0:00:06]}  Kd1 {[%clk 0:00:21]} 68. Qd2# {[%clk 0:00:05]} 1-0


[Site "https://www.chess.com"]

[Event "Titled Tuesday Blitz March 21 Early 2023"]
[White "Ruge, Edison"]
[Black "Ben Artzi, Ido"]
[WhiteFideId "4401000"]
[BlackFideId "2810913"]
[WhiteElo "2175"]
[BlackElo "2204"]
[Result "0-1"]
[Round "10"]
[TimeControl "180+2"]
[Date "2023.03.21"]
[WhiteClock "0:00:09"]
[BlackClock "0:01:09"]

1. e4 {[%clk 0:02:57]}  e5 {[%clk 0:02:59]} 2. Nf3 {[%clk 0:02:56]}  Nc6 {[%clk 0:02:59]} 3. Bb5 {[%clk 0:02:57]}  a6 {[%clk 0:02:58]} 4. Ba4 {[%clk 0:02:57]}  Nf6 {[%clk 0:02:57]} 5. Qe2 {[%clk 0:02:58]}  b5 {[%clk 0:02:50]} 6. Bb3 {[%clk 0:02:58]}  Be7 {[%clk 0:02:50]} 7. a4 {[%clk 0:02:59]}  Bb7 {[%clk 0:02:50]} 8. axb5 {[%clk 0:02:59]}  axb5 {[%clk 0:02:50]} 9. Rxa8 {[%clk 0:02:59]}  Qxa8 {[%clk 0:02:41]} 10. d3 {[%clk 0:02:58]}  O-O {[%clk 0:02:41]} 11. O-O {[%clk 0:02:57]}  d6 {[%clk 0:02:38]} 12. Nc3 {[%clk 0:02:56]}  Na5 {[%clk 0:02:37]} 13. Nxb5 {[%clk 0:02:22]}  Nxb3 {[%clk 0:02:28]} 14. cxb3 {[%clk 0:02:22]}  Qa5 {[%clk 0:02:25]} 15. Na3 {[%clk 0:02:19]}  Ba6 {[%clk 0:02:18]} 16. Qc2 {[%clk 0:02:16]}  Rb8 {[%clk 0:02:16]} 17. Nc4 {[%clk 0:01:58]}  Qb5 {[%clk 0:02:11]} 18. Nfd2 {[%clk 0:01:55]}  Nd7 {[%clk 0:02:10]} 19. Rd1 {[%clk 0:01:46]}  Nc5 {[%clk 0:02:09]} 20. Nb1 {[%clk 0:01:31]}  Qxb3 {[%clk 0:02:01]} 21. Qxb3 {[%clk 0:01:28]}  Rxb3 {[%clk 0:02:01]} 22. Nc3 {[%clk 0:01:28]}  Nxd3 {[%clk 0:02:00]} 23. Rxd3 {[%clk 0:01:15]}  Bxc4 {[%clk 0:02:00]} 24. Rd1 {[%clk 0:01:10]}  c6 {[%clk 0:01:58]} 25. f3 {[%clk 0:00:58]}  f5 {[%clk 0:01:57]} 26. Kf2 {[%clk 0:00:52]}  f4 {[%clk 0:01:55]} 27. Ke1 {[%clk 0:00:43]}  Kf7 {[%clk 0:01:52]} 28. Kd2 {[%clk 0:00:43]}  Ke6 {[%clk 0:01:51]} 29. Kc2 {[%clk 0:00:43]}  g5 {[%clk 0:01:44]} 30. Bd2 {[%clk 0:00:41]}  d5 {[%clk 0:01:44]} 31. Ra1 {[%clk 0:00:38]}  d4 {[%clk 0:01:40]} 32. Nd1 {[%clk 0:00:35]}  Rb5 {[%clk 0:01:29]} 33. Kc1 {[%clk 0:00:29]}  Bd3 {[%clk 0:01:09]} 34. Nf2 {[%clk 0:00:16]}  Be2 {[%clk 0:01:09]} 35. Ra6 {[%clk 0:00:09]}  Rc5+ {[%clk 0:01:09]} 0-1


[Site "https://www.chess.com"]

[Event "Titled Tuesday Blitz March 21 Early 2023"]
[White "Pniaczek, Marek"]
[Black "Larino Nieto, David"]
[WhiteFideId "21800421"]
[BlackFideId "2256444"]
[WhiteElo "2138"]
[BlackElo "2506"]
[Result "0-1"]
[Round "10"]
[TimeControl "180+2"]
[Date "2023.03.21"]
[WhiteClock "0:00:01"]
[BlackClock "0:00:11"]

1. e4 {[%clk 0:03:00]}  d5 {[%clk 0:02:55]} 2. exd5 {[%clk 0:02:57]}  Qxd5 {[%clk 0:02:56]} 3. Nc3 {[%clk 0:02:56]}  Qa5 {[%clk 0:02:57]} 4. Nf3 {[%clk 0:02:55]}  Nf6 {[%clk 0:02:57]} 5. d4 {[%clk 0:02:55]}  Nc6 {[%clk 0:02:57]} 6. d5 {[%clk 0:02:47]}  Nb4 {[%clk 0:02:56]} 7. Bc4 {[%clk 0:02:38]}  Bg4 {[%clk 0:02:55]} 8. O-O {[%clk 0:02:35]}  O-O-O {[%clk 0:02:54]} 9. h3 {[%clk 0:02:33]}  Bh5 {[%clk 0:01:50]} 10. Bd2 {[%clk 0:02:21]}  Qc5 {[%clk 0:01:46]} 11. Bb3 {[%clk 0:02:15]}  Nbxd5 {[%clk 0:01:45]} 12. Nxd5 {[%clk 0:02:09]}  Nxd5 {[%clk 0:01:46]} 13. Qe2 {[%clk 0:02:03]}  e6 {[%clk 0:01:39]} 14. c4 {[%clk 0:02:00]}  Nb4 {[%clk 0:01:21]} 15. Be3 {[%clk 0:01:56]}  Qf5 {[%clk 0:01:18]} 16. g4 {[%clk 0:01:12]}  Bxg4 {[%clk 0:01:10]} 17. hxg4 {[%clk 0:01:11]}  Qxg4+ {[%clk 0:01:11]} 18. Kh1 {[%clk 0:01:11]}  Bd6 {[%clk 0:01:08]} 19. Rfd1 {[%clk 0:00:40]}  g5 {[%clk 0:00:54]} 20. Ng1 {[%clk 0:00:25]}  Qf5 {[%clk 0:00:35]} 21. Qf3 {[%clk 0:00:18]}  Qg6 {[%clk 0:00:30]} 22. c5 {[%clk 0:00:15]}  g4 {[%clk 0:00:30]} 23. Qe2 {[%clk 0:00:10]}  Be5 {[%clk 0:00:18]} 24. c6 {[%clk 0:00:10]}  Nxc6 {[%clk 0:00:17]} 25. Rac1 {[%clk 0:00:10]}  Rdg8 {[%clk 0:00:13]} 26. Rxc6 {[%clk 0:00:09]}  Qe4+ {[%clk 0:00:13]} 27. f3 {[%clk 0:00:03]}  gxf3 {[%clk 0:00:13]} 28. Qxf3 {[%clk 0:00:01]}  Rxg1+ {[%clk 0:00:11]} 29. Kxg1 {[%clk 0:00:01]}  Qxf3 {[%clk 0:00:11]} 0-1


[Site "https://www.chess.com"]

[Event "Titled Tuesday Blitz March 21 Early 2023"]
[White "Bilan, Danila"]
[Black "Vlassov, Nikolai"]
[WhiteFideId "24161918"]
[BlackFideId "4103360"]
[WhiteElo "2182"]
[BlackElo "2324"]
[Result "0-1"]
[Round "10"]
[TimeControl "180+2"]
[Date "2023.03.21"]
[WhiteClock "0:00:24"]
[BlackClock "0:00:40"]

1. d4 {[%clk 0:03:00]}  Nf6 {[%clk 0:02:59]} 2. Nf3 {[%clk 0:03:01]}  e6 {[%clk 0:02:59]} 3. g3 {[%clk 0:03:01]}  b5 {[%clk 0:02:59]} 4. Bg2 {[%clk 0:03:02]}  Bb7 {[%clk 0:02:59]} 5. a4 {[%clk 0:02:57]}  b4 {[%clk 0:02:58]} 6. c4 {[%clk 0:02:58]}  bxc3 {[%clk 0:02:58]} 7. bxc3 {[%clk 0:02:58]}  c5 {[%clk 0:02:57]} 8. O-O {[%clk 0:02:57]}  Na6 {[%clk 0:02:57]} 9. Ba3 {[%clk 0:02:57]}  Be7 {[%clk 0:02:54]} 10. Nbd2 {[%clk 0:02:56]}  O-O {[%clk 0:02:53]} 11. Nc4 {[%clk 0:02:41]}  Rc8 {[%clk 0:02:09]} 12. Qb3 {[%clk 0:01:41]}  Bd5 {[%clk 0:02:01]} 13. Nfd2 {[%clk 0:01:24]}  Rb8 {[%clk 0:01:35]} 14. Qc2 {[%clk 0:01:16]}  Bxg2 {[%clk 0:01:35]} 15. Kxg2 {[%clk 0:01:17]}  cxd4 {[%clk 0:01:20]} 16. cxd4 {[%clk 0:01:11]}  Bxa3 {[%clk 0:01:11]} 17. Rxa3 {[%clk 0:01:12]}  Qc7 {[%clk 0:01:11]} 18. Qd3 {[%clk 0:00:48]}  Rfc8 {[%clk 0:01:07]} 19. Rb1 {[%clk 0:00:43]}  Nb4 {[%clk 0:00:54]} 20. Qf3 {[%clk 0:00:27]}  Nc2 {[%clk 0:00:48]} 21. Rxb8 {[%clk 0:00:27]}  Rxb8 {[%clk 0:00:41]} 22. Rd3 {[%clk 0:00:24]}  Ne1+ {[%clk 0:00:40]} 0-1


[Site "https://www.chess.com"]

[Event "Titled Tuesday Blitz March 21 Early 2023"]
[White "Bas Mas, Jose Joaquin"]
[Black "Blomqvist, Erik"]
[WhiteFideId "22219064"]
[BlackFideId "1709437"]
[WhiteElo "2233"]
[BlackElo "2436"]
[Result "0-1"]
[Round "10"]
[TimeControl "180+2"]
[Date "2023.03.21"]
[WhiteClock "0:01:22"]
[BlackClock "0:01:41"]

1. e4 {[%clk 0:03:00]}  c5 {[%clk 0:02:57]} 2. Nc3 {[%clk 0:03:00]}  e6 {[%clk 0:02:57]} 3. g3 {[%clk 0:02:59]}  d5 {[%clk 0:02:56]} 4. exd5 {[%clk 0:02:56]}  exd5 {[%clk 0:02:56]} 5. d4 {[%clk 0:02:50]}  cxd4 {[%clk 0:02:36]} 6. Qxd4 {[%clk 0:02:46]}  Nf6 {[%clk 0:02:37]} 7. Bg5 {[%clk 0:02:32]}  Nc6 {[%clk 0:02:37]} 8. Qe3+ {[%clk 0:02:27]}  Be6 {[%clk 0:02:27]} 9. O-O-O {[%clk 0:02:21]}  d4 {[%clk 0:02:25]} 10. Qe1 {[%clk 0:01:55]}  Qa5 {[%clk 0:02:04]} 11. Bxf6 {[%clk 0:01:54]}  gxf6 {[%clk 0:02:04]} 12. Ne4 {[%clk 0:01:36]}  Bb4 {[%clk 0:02:03]} 13. c3 {[%clk 0:01:25]}  dxc3 {[%clk 0:01:47]} 14. Nxf6+ {[%clk 0:01:22]}  Ke7 {[%clk 0:01:41]} 0-1


[Site "https://www.chess.com"]

[Event "Titled Tuesday Blitz March 21 Early 2023"]
[White "Shuvalov, Evgenij"]
[Black "Jakubowska, Anna"]
[WhiteFideId "4187237"]
[BlackFideId "1121952"]
[WhiteElo "2080"]
[BlackElo "2001"]
[Result "1/2-1/2"]
[Round "10"]
[TimeControl "180+2"]
[Date "2023.03.21"]
[WhiteClock "0:00:51"]
[BlackClock "0:00:42"]

1. d4 {[%clk 0:02:42]}  f5 {[%clk 0:02:58]} 2. c4 {[%clk 0:02:39]}  Nf6 {[%clk 0:02:58]} 3. Nc3 {[%clk 0:02:39]}  e6 {[%clk 0:02:58]} 4. g3 {[%clk 0:02:37]}  Bb4 {[%clk 0:02:57]} 5. Bg2 {[%clk 0:02:37]}  O-O {[%clk 0:02:57]} 6. Nf3 {[%clk 0:02:35]}  d6 {[%clk 0:02:57]} 7. O-O {[%clk 0:02:35]}  Bxc3 {[%clk 0:02:57]} 8. bxc3 {[%clk 0:02:35]}  Nbd7 {[%clk 0:02:57]} 9. Nd2 {[%clk 0:02:32]}  e5 {[%clk 0:02:51]} 10. e3 {[%clk 0:02:28]}  Qe7 {[%clk 0:02:49]} 11. a4 {[%clk 0:02:27]}  Rb8 {[%clk 0:02:49]} 12. Ba3 {[%clk 0:02:23]}  b6 {[%clk 0:02:49]} 13. c5 {[%clk 0:02:21]}  bxc5 {[%clk 0:02:48]} 14. dxc5 {[%clk 0:02:18]}  Nxc5 {[%clk 0:02:47]} 15. Bxc5 {[%clk 0:02:17]}  dxc5 {[%clk 0:02:48]} 16. Nc4 {[%clk 0:02:17]}  Ba6 {[%clk 0:02:43]} 17. Na5 {[%clk 0:02:12]}  Bxf1 {[%clk 0:02:23]} 18. Qxf1 {[%clk 0:02:13]}  Qe6 {[%clk 0:02:11]} 19. Qc4 {[%clk 0:01:50]}  Qxc4 {[%clk 0:02:06]} 20. Nxc4 {[%clk 0:01:51]}  e4 {[%clk 0:02:06]} 21. Na5 {[%clk 0:01:44]}  Rb2 {[%clk 0:02:01]} 22. h3 {[%clk 0:01:41]}  Rd8 {[%clk 0:01:59]} 23. Bf1 {[%clk 0:01:38]}  g6 {[%clk 0:01:40]} 24. Bb5 {[%clk 0:01:27]}  Rdd2 {[%clk 0:01:30]} 25. Nc4 {[%clk 0:01:26]}  Rxf2 {[%clk 0:01:30]} 26. Nxb2 {[%clk 0:01:27]}  Rxb2 {[%clk 0:01:30]} 27. Rd1 {[%clk 0:01:26]}  Nh5 {[%clk 0:01:27]} 28. Rd8+ {[%clk 0:01:21]}  Kg7 {[%clk 0:01:26]} 29. Rd7+ {[%clk 0:01:21]}  Kh6 {[%clk 0:01:25]} 30. g4 {[%clk 0:01:18]}  fxg4 {[%clk 0:01:24]} 31. hxg4 {[%clk 0:01:19]}  Nf6 {[%clk 0:01:19]} 32. Rxc7 {[%clk 0:01:15]}  Nxg4 {[%clk 0:01:19]} 33. Rxc5 {[%clk 0:01:05]}  Nxe3 {[%clk 0:01:19]} 34. Re5 {[%clk 0:01:03]}  Nd1 {[%clk 0:01:10]} 35. Rxe4 {[%clk 0:01:00]}  Nxc3 {[%clk 0:01:09]} 36. Rh4+ {[%clk 0:00:52]}  Kg5 {[%clk 0:01:08]} 37. Rxh7 {[%clk 0:00:52]}  Nxb5 {[%clk 0:00:51]} 38. axb5 {[%clk 0:00:52]}  Rxb5 {[%clk 0:00:51]} 39. Rxa7 {[%clk 0:00:52]}  Rb3 {[%clk 0:00:42]} 40. Ra4 {[%clk 0:00:51]}  Kh5 {[%clk 0:00:41]} 41. Kg2 {[%clk 0:00:52]}  g5 {[%clk 0:00:41]} 42. Rc4 {[%clk 0:00:50]}  g4 {[%clk 0:00:41]} 43. Rc8 {[%clk 0:00:49]}  Kh4 {[%clk 0:00:41]} 44. Rh8+ {[%clk 0:00:49]}  Kg5 {[%clk 0:00:42]} 45. Rg8+ {[%clk 0:00:49]}  Kf4 {[%clk 0:00:42]} 46. Rf8+ {[%clk 0:00:49]}  Kg5 {[%clk 0:00:43]} 47. Rg8+ {[%clk 0:00:50]}  Kh4 {[%clk 0:00:42]} 48. Rh8+ {[%clk 0:00:50]}  Kg5 {[%clk 0:00:42]} 49. Rg8+ {[%clk 0:00:51]} 1/2-1/2


[Site "https://www.chess.com"]

[Event "Titled Tuesday Blitz March 21 Early 2023"]
[White "Carrasco Miranda, Andres"]
[Black "TheKnightOfBosnia"]
[WhiteFideId "3405990"]
[WhiteElo "2183"]
[BlackElo "2522"]
[Result "1/2-1/2"]
[Round "10"]
[TimeControl "180+2"]
[Date "2023.03.21"]
[WhiteClock "0:00:19"]
[BlackClock "0:00:20"]

1. d4 {[%clk 0:03:00]}  Nf6 {[%clk 0:02:59]} 2. c4 {[%clk 0:03:00]}  e6 {[%clk 0:03:00]} 3. g3 {[%clk 0:03:00]}  Bb4+ {[%clk 0:02:59]} 4. Nd2 {[%clk 0:02:59]}  O-O {[%clk 0:02:57]} 5. Bg2 {[%clk 0:02:59]}  d5 {[%clk 0:02:57]} 6. Nf3 {[%clk 0:02:59]}  Nc6 {[%clk 0:02:55]} 7. O-O {[%clk 0:02:56]}  Bxd2 {[%clk 0:02:49]} 8. Qxd2 {[%clk 0:02:55]}  dxc4 {[%clk 0:02:46]} 9. e3 {[%clk 0:02:53]}  Qe7 {[%clk 0:02:39]} 10. Qc2 {[%clk 0:02:49]}  e5 {[%clk 0:02:39]} 11. Qxc4 {[%clk 0:02:43]}  exd4 {[%clk 0:02:39]} 12. Nxd4 {[%clk 0:02:43]}  Nxd4 {[%clk 0:02:39]} 13. Qxd4 {[%clk 0:02:43]}  c6 {[%clk 0:02:39]} 14. Bd2 {[%clk 0:02:35]}  Rd8 {[%clk 0:02:27]} 15. Bb4 {[%clk 0:02:35]}  Qe8 {[%clk 0:02:11]} 16. Qh4 {[%clk 0:02:31]}  Be6 {[%clk 0:02:09]} 17. Bc3 {[%clk 0:02:30]}  Nd5 {[%clk 0:02:08]} 18. Bxd5 {[%clk 0:02:19]}  Bxd5 {[%clk 0:02:07]} 19. Qg5 {[%clk 0:02:15]}  Qf8 {[%clk 0:01:58]} 20. Rfd1 {[%clk 0:02:11]}  h6 {[%clk 0:01:54]} 21. Qf4 {[%clk 0:02:09]}  Be6 {[%clk 0:01:51]} 22. e4 {[%clk 0:02:02]}  Rxd1+ {[%clk 0:01:47]} 23. Rxd1 {[%clk 0:02:03]}  Bxa2 {[%clk 0:01:47]} 24. Rd7 {[%clk 0:02:00]}  b6 {[%clk 0:01:40]} 25. Rd6 {[%clk 0:01:29]}  Be6 {[%clk 0:01:32]} 26. Rxc6 {[%clk 0:01:26]}  b5 {[%clk 0:01:20]} 27. Qe5 {[%clk 0:01:21]}  b4 {[%clk 0:01:13]} 28. Bd4 {[%clk 0:01:16]}  a5 {[%clk 0:01:08]} 29. f4 {[%clk 0:01:08]}  Rc8 {[%clk 0:01:02]} 30. Rxc8 {[%clk 0:00:45]}  Bxc8 {[%clk 0:01:01]} 31. f5 {[%clk 0:00:45]}  b3 {[%clk 0:00:45]} 32. Qxa5 {[%clk 0:00:41]}  f6 {[%clk 0:00:42]} 33. e5 {[%clk 0:00:26]}  fxe5 {[%clk 0:00:39]} 34. Qxe5 {[%clk 0:00:25]}  Bxf5 {[%clk 0:00:38]} 35. Qd5+ {[%clk 0:00:20]}  Qf7 {[%clk 0:00:37]} 36. Qxf7+ {[%clk 0:00:20]}  Kxf7 {[%clk 0:00:38]} 37. Kf2 {[%clk 0:00:19]}  g5 {[%clk 0:00:37]} 38. h4 {[%clk 0:00:17]}  Kg6 {[%clk 0:00:32]} 39. hxg5 {[%clk 0:00:17]}  Kxg5 {[%clk 0:00:32]} 40. Be3+ {[%clk 0:00:16]}  Kh5 {[%clk 0:00:32]} 41. Bf4 {[%clk 0:00:16]}  Bc2 {[%clk 0:00:31]} 42. Ke3 {[%clk 0:00:17]}  Kg6 {[%clk 0:00:30]} 43. Kd4 {[%clk 0:00:17]}  h5 {[%clk 0:00:30]} 44. Bb8 {[%clk 0:00:17]}  Kf5 {[%clk 0:00:30]} 45. Ke3 {[%clk 0:00:17]}  Kg4 {[%clk 0:00:30]} 46. Kf2 {[%clk 0:00:17]}  Bg6 {[%clk 0:00:28]} 47. Ke3 {[%clk 0:00:17]}  Kf5 {[%clk 0:00:27]} 48. Kd4 {[%clk 0:00:16]}  Ke6 {[%clk 0:00:26]} 49. Ke3 {[%clk 0:00:16]}  Kd5 {[%clk 0:00:26]} 50. Kf4 {[%clk 0:00:16]}  Be8 {[%clk 0:00:24]} 51. Kg5 {[%clk 0:00:16]}  Ke4 {[%clk 0:00:22]} 52. Kh4 {[%clk 0:00:16]}  Kf5 {[%clk 0:00:20]} 53. Bc7 {[%clk 0:00:17]}  Bf7 {[%clk 0:00:19]} 54. Bb8 {[%clk 0:00:18]}  Be8 {[%clk 0:00:20]} 55. Bc7 {[%clk 0:00:18]}  Bf7 {[%clk 0:00:20]} 56. Bb8 {[%clk 0:00:19]}  Be8 {[%clk 0:00:20]} 1/2-1/2


[Site "https://www.chess.com"]